bitfinex/quotes_BTCUSD_20220101
["timestamp","ask_amount","ask_price","bid_price","bid_amount"]
[1641074664354,0.72549366,47366.0,47365.0,13.60234661]
[1641074664553,0.82549366,47366.0,47365.0,13.60234661]
[1641074664754,0.82549366,47366.0,47365.0,13.62353396]
[1641074664955,0.82549366,47366.0,47365.0,13.60413014]
[1641074665454,0.72549366,47366.0,47365.0,13.60413014]
[1641074665654,0.72549366,47366.0,47365.0,13.62467381]
[1641074665854,0.72549366,47366.0,47365.0,13.60348646]
[1641074666808,0.62549366,47366.0,47365.0,13.62361637]
[1641074667009,0.62549366,47366.0,47365.0,13.6030727]
[1641074668410,0.62549366,47366.0,47365.0,13.6234417]
[1641074668612,0.62549366,47366.0,47365.0,13.60331179]
[1641074668809,0.62549366,47366.0,47365.0,13.62262332]
[1641074669610,0.72549366,47366.0,47365.0,13.62262332]
[1641074669882,0.72549366,47366.0,47365.0,13.60363408]
[1641074670880,0.72549366,47366.0,47365.0,13.62501795]
[1641074671083,0.72549366,47366.0,47365.0,13.60432666]
[1641074671881,0.72549366,47366.0,47365.0,13.624258]
[1641074672081,0.72549366,47366.0,47365.0,13.60287413]
[1641074672681,0.62549366,47366.0,47365.0,13.60287413]
[1641074672883,0.62549366,47366.0,47365.0,13.62480999]
[1641074673083,0.62549366,47366.0,47365.0,13.60487865]
[1641074674017,0.62549366,47366.0,47365.0,13.60452902]
[1641074674812,0.62549366,47366.0,47365.0,13.62452557]
[1641074675013,0.62549366,47366.0,47365.0,13.60293934]
[1641074675814,0.62549366,47366.0,47365.0,13.62336085]
[1641074676015,0.62549366,47366.0,47365.0,13.6033643]
[1641074676816,0.62549366,47366.0,47365.0,13.6229863]
[1641074677016,0.62549366,47366.0,47365.0,13.60256479]
[1641074677852,0.62549366,47366.0,47365.0,13.62364894]
[1641074678051,0.62549366,47366.0,47365.0,13.60402694]
[1641074678856,0.62549366,47366.0,47365.0,13.48333552]
[1641074679056,0.62549366,47366.0,47365.0,13.46225137]
[1641074679859,0.72549366,47366.0,47365.0,13.4805191]
[1641074680056,0.72549366,47366.0,47365.0,13.46121052]
[1641074680862,0.72549366,47366.0,47365.0,13.48065962]
[1641074681715,0.72549366,47366.0,47365.0,13.44294279]
[1641074681919,0.72549366,47366.0,47365.0,13.46345988]
[1641074682816,0.72549366,47366.0,47365.0,13.48149098]
[1641074683018,0.72549366,47366.0,47365.0,13.46097389]
[1641074683518,0.35802323,47366.0,47365.0,13.46097389]
[1641074683819,0.35802323,47366.0,47365.0,13.48292472]
[1641074684017,0.35802323,47366.0,47365.0,13.46489362]
[1641074684848,0.35802323,47366.0,47365.0,13.48356029]
[1641074685051,0.35802323,47366.0,47365.0,13.46160946]
[1641074685252,0.25802323,47366.0,47365.0,13.46160946]
[1641074685551,0.35802323,47366.0,47365.0,13.46160946]
[1641074685953,0.35802323,47366.0,47365.0,13.48270593]
[1641074686253,0.35802323,47366.0,47365.0,13.46403926]
[1641074687056,0.35802323,47366.0,47365.0,13.48589845]
[1641074687254,0.35802323,47366.0,47365.0,13.46480198]
[1641074687857,0.35802323,47366.0,47365.0,13.48561324]
[1641074688057,0.35802323,47366.0,47365.0,13.46375405]
[1641074688904,0.35802323,47366.0,47365.0,13.48434205]
[1641074689100,0.35802323,47366.0,47365.0,13.46353079]
[1641074689305,0.25802323,47366.0,47365.0,13.46353079]
[1641074689901,0.25802323,47366.0,47365.0,13.48351995]
[1641074691104,0.25802323,47366.0,47365.0,13.50358651]
[1641074691302,0.25802323,47366.0,47365.0,13.46300935]
[1641074691702,0.61261463,47366.0,47365.0,13.46300935]
[1641074691902,0.61261463,47366.0,47365.0,13.4839913]
[1641074692103,0.71261463,47366.0,47365.0,13.4839913]
[1641074692755,0.71261463,47366.0,47365.0,13.44294279]
[1641074692954,0.71261463,47366.0,47365.0,13.46097263]
[1641074693455,0.35802323,47366.0,47365.0,13.46097263]
[1641074694457,0.35802323,47366.0,47365.0,13.48003922]
[1641074694657,0.35802323,47366.0,47365.0,13.46200938]
[1641074694861,0.25802323,47366.0,47365.0,13.48161011]
[1641074695058,0.35802323,47366.0,47365.0,13.46254352]
[1641074695461,0.25802323,47366.0,47365.0,13.46254352]
[1641074695661,0.20522623,47366.0,47365.0,13.46254352]
[1641074696118,0.20522623,47366.0,47365.0,13.46214355]
[1641074697016,0.20522623,47366.0,47365.0,13.48137763]
[1641074697216,0.20522623,47366.0,47365.0,13.46217687]
[1641074698120,0.20522623,47366.0,47365.0,13.46407292]
[1641074698319,0.20522623,47366.0,47365.0,13.46370567]
[1641074698918,0.20522623,47366.0,47365.0,13.48300973]
[1641074699118,0.20522623,47366.0,47365.0,13.4618796]
[1641074699973,0.20522623,47366.0,47365.0,13.48058977]
[1641074700168,0.20522623,47366.0,47365.0,13.46128571]
[1641074700974,0.20522623,47366.0,47365.0,13.4825219]
[1641074701272,0.20522623,47366.0,47365.0,13.46381173]
[1641074702170,0.20522623,47366.0,47365.0,13.46379831]
[1641074702971,0.20522623,47366.0,47365.0,13.48291327]
[1641074703176,0.80832056,47366.0,47365.0,14.05676725]
[1641074703627,0.54832056,47366.0,47365.0,14.05676725]
[1641074703817,0.54832056,47366.0,47365.0,13.4616905]
[1641074704017,0.60111256,47366.0,47365.0,13.4616905]
[1641074704216,0.60111256,47366.0,47365.0,13.4833873]
[1641074704418,0.60111256,47366.0,47365.0,13.46427234]
[1641074704918,0.40801823,47366.0,47365.0,13.46427234]
[1641074705118,0.40801823,47366.0,47365.0,13.48324615]
[1641074705316,0.35801823,47366.0,47365.0,13.46154935]
[1641074705517,0.25801823,47366.0,47365.0,13.46154935]
[1641074706018,0.25801823,47366.0,47365.0,13.48156794]
[1641074706220,0.25858422,47366.0,47365.0,13.46259413]
[1641074707220,0.25858422,47366.0,47365.0,13.4808794]
[1641074707459,0.25858422,47366.0,47365.0,13.46086081]
[1641074707662,0.20579222,47366.0,47365.0,13.46086081]
[1641074708660,0.20579222,47366.0,47365.0,13.48204187]
[1641074708864,0.20579222,47366.0,47365.0,13.4637566]
[1641074709064,0.20579222,47366.0,47365.0,13.48220473]
[1641074709463,0.20579222,47366.0,47365.0,13.44257554]
[1641074710064,0.20579222,47366.0,47365.0,13.46419516]
[1641074710764,0.20579222,47366.0,47365.0,13.51698024]
[1641074711220,0.20579222,47366.0,47365.0,13.5361706]
[1641074711419,0.20579222,47366.0,47365.0,13.51455098]
[1641074712018,0.20579222,47366.0,47365.0,14.17424428]
[1641074712216,0.20579222,47366.0,47365.0,14.19463116]
[1641074712518,0.20579222,47366.0,47365.0,13.46296242]
[1641074713118,0.25858322,47366.0,47365.0,14.07825596]
[1641074713318,0.25858322,47366.0,47365.0,14.05786908]
[1641074713519,0.20579222,47366.0,47365.0,13.46283804]
[1641074714120,0.20579222,47366.0,47365.0,13.48237023]
[1641074714320,0.20579222,47366.0,47365.0,13.46210773]
[1641074715164,0.20579222,47366.0,47365.0,13.48089865]
[1641074715364,0.20434222,47366.0,47365.0,13.46136646]
[1641074716266,0.20434222,47366.0,47365.0,13.48252291]
[1641074716466,0.20434222,47366.0,47365.0,13.46373199]
[1641074717166,0.20434222,47366.0,47365.0,13.48567276]
[1641074717367,0.20434222,47366.0,47365.0,13.46451631]
[1641074718170,0.20434222,47366.0,47365.0,13.4845327]
[1641074718369,0.20434222,47366.0,47365.0,13.46259193]
[1641074719117,0.20434222,47366.0,47365.0,13.48100322]
[1641074719316,0.20434222,47366.0,47365.0,13.46098683]
[1641074720116,0.20434222,47366.0,47365.0,13.48021053]
[1641074720316,0.20434222,47366.0,47365.0,13.46179924]
[1641074721117,0.20434222,47366.0,47365.0,13.48270704]
[1641074721321,0.20434222,47366.0,47365.0,13.46348334]
[1641074722361,0.20434222,47366.0,47365.0,13.46421516]
[1641074723366,0.20434222,47366.0,47365.0,13.46057928]
[1641074724164,0.20434222,47366.0,47365.0,13.48060628]
[1641074724365,0.20434222,47366.0,47365.0,13.46260254]
[1641074725266,0.20434222,47366.0,47365.0,13.48137688]
[1641074725467,0.20434222,47366.0,47365.0,13.46134988]
[1641074726321,0.20434222,47366.0,47365.0,13.46066003]
[1641074727222,0.20434222,47366.0,47365.0,13.48115218]
[1641074728222,0.20434222,47366.0,47365.0,13.50158498]
[1641074728425,0.20434222,47366.0,47365.0,13.46300834]
[1641074729224,0.20434222,47366.0,47365.0,13.4825641]
[1641074729423,0.20434222,47366.0,47365.0,13.4621313]
[1641074730263,0.20434222,47366.0,47365.0,13.48029501]
[1641074731065,0.20428211,47366.0,47365.0,13.48029501]
[1641074731262,0.20428211,47366.0,47365.0,13.49985233]
[1641074731462,0.20428211,47366.0,47365.0,13.46213286]
[1641074732264,0.20428211,47366.0,47365.0,13.48233799]
[1641074732465,0.20428211,47366.0,47365.0,13.46278067]
[1641074733911,0.20428211,47366.0,47365.0,13.48221413]
[1641074734108,0.20428211,47366.0,47365.0,13.462009]
[1641074735311,0.20428211,47366.0,47365.0,13.48091995]
[1641074735512,0.19928211,47366.0,47365.0,13.46148649]
[1641074736112,0.19871612,47366.0,47365.0,13.46148649]
[1641074736316,0.19871612,47366.0,47365.0,13.48178898]
[1641074736513,0.19871612,47366.0,47365.0,13.44257554]
[1641074737354,0.19871612,47366.0,47365.0,13.46086251]
[1641074737555,0.19871612,47366.0,47365.0,13.51086251]
[1641074737855,0.19871612,47366.0,47365.0,13.56086251]
[1641074738256,0.18371612,47366.0,47365.0,13.56086251]
[1641074738455,0.18371612,47366.0,47365.0,13.62301825]
[1641074738656,0.001,47379.0,47365.0,13.62301825]
[1641074738657,0.001,47379.0,47369.0,0.05378]
[1641074738859,0.001,47379.0,47374.0,0.05378]
[1641074739657,0.001,47379.0,47376.0,0.05378]
[1641074739858,0.001,47379.0,47377.0,0.05378]
[1641074740058,0.001,47379.0,47377.0,0.106549]
[1641074740258,0.001,47379.0,47378.0,0.10378]
[1641074740460,0.001,47379.0,47378.0,0.54356622]
[1641074740658,0.001,47379.0,47378.0,0.49356622]
[1641074740659,0.00180335,47379.0,47378.0,0.49356622]
[1641074741304,0.05458235,47379.0,47378.0,0.49356622]
[1641074741510,0.05458235,47379.0,47378.0,0.51543851]
[1641074742406,0.05458235,47379.0,47378.0,0.09660287]
[1641074742608,0.05458235,47379.0,47378.0,0.07473058]
[1641074743608,0.05458235,47379.0,47378.0,0.05378]
[1641074744970,0.26458235,47379.0,47378.0,0.05378]
[1641074745169,0.21180335,47379.0,47378.0,0.05378]
[1641074746371,0.00180335,47379.0,47378.0,0.05378]
[1641074749129,0.00186864,47379.0,47378.0,0.05378]
[1641074754173,0.03344625,47379.0,47378.0,0.05378]
[1641074769371,0.03344625,47379.0,47378.0,0.04878]
[1641074770573,0.0326429,47379.0,47378.0,0.04878]
[1641074777570,0.0748429,47379.0,47378.0,0.04878]
[1641074777872,0.43221329,47379.0,47378.0,0.04878]
[1641074778068,0.53221329,47379.0,47378.0,0.04878]
[1641074778269,1.89221329,47379.0,47378.0,0.04878]
[1641074778470,2.04221329,47379.0,47378.0,0.04878]
[1641074778723,2.20058729,47379.0,47378.0,0.04878]
[1641074779721,0.69058729,47379.0,47378.0,0.04878]
[1641074779922,1.07767924,47379.0,47378.0,0.04878]
[1641074780122,1.48048062,47379.0,47378.0,0.04878]
[1641074780724,1.63048062,47379.0,47378.0,0.04878]
[1641074781120,1.48048062,47379.0,47378.0,0.04878]
[1641074782124,1.63048062,47379.0,47378.0,0.04878]
[1641074785872,1.67048062,47379.0,47378.0,0.04878]
[1641074790178,1.28338867,47379.0,47378.0,0.04878]
[1641074790378,1.63741033,47379.0,47378.0,0.04878]
[1641074791579,1.43741033,47379.0,47378.0,0.04878]
[1641074792382,1.48741033,47379.0,47378.0,0.04878]
[1641074792984,1.63741033,47379.0,47378.0,0.04878]
[1641074793619,1.58741033,47379.0,47378.0,0.04878]
[1641074793814,1.23338867,47379.0,47378.0,0.04878]
[1641074794014,1.28338867,47379.0,47378.0,0.04878]
[1641074794213,1.23338867,47379.0,47378.0,0.04878]
[1641074798260,1.58077827,47379.0,47378.0,0.04878]
[1641074798460,1.23338867,47379.0,47378.0,0.04878]
[1641074799462,1.08338867,47379.0,47378.0,0.04878]
[1641074800263,0.92501467,47379.0,47378.0,0.04878]
[1641074806479,0.88281467,47379.0,47378.0,0.04878]
[1641074809710,0.93281467,47379.0,47378.0,0.04878]
[1641074813061,1.14394189,47379.0,47378.0,0.04878]
[1641074814363,1.50232329,47379.0,47378.0,0.04878]
[1641074816812,1.93232329,47379.0,47378.0,0.04878]
[1641074817415,1.50232329,47379.0,47378.0,0.04878]
[1641074819417,1.55232329,47379.0,47378.0,0.04878]
[1641074820072,1.50232329,47379.0,47378.0,0.04878]
[1641074823725,1.55232329,47379.0,47378.0,0.04878]
[1641074828173,1.59452329,47379.0,47378.0,0.04878]
[1641074833819,2.71152329,47379.0,47378.0,0.04878]
[1641074835965,2.66152329,47379.0,47378.0,0.04878]
[1641074841230,2.30314189,47379.0,47378.0,0.04878]
[1641074844674,2.35314189,47379.0,47378.0,0.04878]
[1641074849320,2.30314189,47379.0,47378.0,0.04878]
[1641074850671,1.42,47378.0,47369.0,0.00978521]
[1641074850872,0.05279343,47374.0,47369.0,0.00978521]
[1641074851071,0.094998,47373.0,47369.0,0.00978521]
[1641074851373,0.1210902,47372.0,47369.0,0.00978521]
[1641074851576,0.58219068,47371.0,47369.0,0.00978521]
[1641074851775,0.2,47368.0,47365.0,13.40860368]
[1641074851974,0.2422,47367.0,47365.0,13.40860368]
[1641074852171,0.00123114,47366.0,47365.0,13.00611213]
[1641074852369,1.21399713,47366.0,47365.0,12.98630399]
[1641074852571,1.86399713,47366.0,47365.0,12.98630399]
[1641074852772,1.86399713,47366.0,47365.0,12.56381699]
[1641074852973,2.06399713,47366.0,47365.0,12.56381699]
[1641074853173,2.08559523,47366.0,47365.0,12.56381699]
[1641074853375,2.08559523,47366.0,47365.0,11.69884954]
[1641074853813,0.91559523,47366.0,47365.0,11.69884954]
[1641074854013,1.27395426,47366.0,47365.0,11.69884954]
[1641074854216,1.29487247,47366.0,47365.0,11.69884954]
[1641074854414,1.68327437,47366.0,47365.0,11.69884954]
[1641074854614,1.32491534,47366.0,47365.0,11.69884954]
[1641074855214,1.34420498,47366.0,47365.0,11.69884954]
[1641074855416,1.68158757,47366.0,47365.0,11.69884954]
[1641074855816,1.32328677,47366.0,47365.0,11.69884954]
[1641074856316,1.14047267,47366.0,47365.0,11.69884954]
[1641074856516,1.12118303,47366.0,47365.0,11.69884954]
[1641074857015,1.16118303,47366.0,47365.0,11.69884954]
[1641074857215,1.18200531,47366.0,47365.0,11.69884954]
[1641074857470,1.58485519,47366.0,47365.0,11.69884954]
[1641074857670,1.68485519,47366.0,47365.0,11.69884954]
[1641074858272,1.68485519,47366.0,47365.0,11.71901148]
[1641074858479,1.66403291,47366.0,47365.0,11.71901148]
[1641074859174,2.83103291,47366.0,47365.0,11.71901148]
[1641074859378,1.73511461,47366.0,47365.0,11.71901148]
[1641074859575,2.85211461,47366.0,47365.0,11.69884954]
[1641074859774,2.80211461,47366.0,47365.0,11.69884954]
[1641074859975,2.85211461,47366.0,47365.0,11.69884954]
[1641074860376,2.84950076,47366.0,47365.0,11.69884954]
[1641074860576,2.84950076,47366.0,47365.0,11.27634854]
[1641074860977,1.73250076,47366.0,47365.0,11.27634854]
[1641074861221,1.70248877,47366.0,47365.0,11.27634854]
[1641074861443,1.75248877,47366.0,47365.0,11.27634854]
[1641074861621,1.38122185,47366.0,47365.0,11.27634854]
[1641074862420,1.36377209,47366.0,47365.0,11.27634854]
[1641074862622,1.72338005,47366.0,47365.0,11.27634854]
[1641074863227,1.36377209,47366.0,47365.0,11.27634854]
[1641074863426,0.95212474,47366.0,47365.0,11.27634854]
[1641074864326,1.78328554,47366.0,47365.0,11.27634854]
[1641074864630,1.76392679,47366.0,47365.0,11.27634854]
[1641074865071,0.95392679,47366.0,47365.0,11.27634854]
[1641074865270,1.34496741,47366.0,47365.0,11.27634854]
[1641074865471,1.32380661,47366.0,47365.0,11.27634854]
[1641074865672,0.95380661,47366.0,47365.0,11.27634854]
[1641074866271,0.96448411,47366.0,47365.0,11.27634854]
[1641074866671,0.74344349,47366.0,47365.0,11.27634854]
[1641074867276,1.14344349,47366.0,47365.0,11.27634854]
[1641074867474,1.15284298,47366.0,47365.0,11.27634854]
[1641074867676,1.29216548,47366.0,47365.0,11.27634854]
[1641074867876,2.62181519,47366.0,47365.0,11.27634854]
[1641074868075,2.87181519,47366.0,47365.0,11.27634854]
[1641074868275,2.67181519,47366.0,47365.0,11.27634854]
[1641074868476,1.55481519,47366.0,47365.0,11.27634854]
[1641074868716,2.57216548,47366.0,47365.0,2.5805463]
[1641074868918,2.92697052,47366.0,47365.0,1.28892097]
[1641074869118,4.57117052,47366.0,47365.0,1.11374936]
[1641074869315,4.93314553,47366.0,47353.0,0.00022]
[1641074869518,0.00121465,47355.0,47353.0,0.00022]
[1641074869718,0.34292208,47354.0,47353.0,0.00022]
[1641074869922,0.68221698,47354.0,47353.0,0.00022]
[1641074870116,0.83221698,47354.0,47353.0,0.00022]
[1641074870317,1.94921698,47354.0,47353.0,0.00022]
[1641074870517,0.85110812,47354.0,47353.0,0.00022]
[1641074870917,1.2268908,47354.0,47353.0,0.00022]
[1641074871319,0.72053869,47354.0,47353.0,0.00022]
[1641074871922,0.56981661,47354.0,47353.0,0.00022]
[1641074872121,0.95084174,47354.0,47353.0,0.00022]
[1641074872364,2.28348311,47354.0,47353.0,0.00022]
[1641074872571,2.2451614,47354.0,47353.0,0.00022]
[1641074873266,2.3951614,47354.0,47353.0,0.00022]
[1641074873465,2.41569893,47354.0,47353.0,0.00022]
[1641074873669,0.92865076,47354.0,47353.0,0.00022]
[1641074873865,0.55203243,47354.0,47353.0,0.00022]
[1641074874366,0.94769019,47354.0,47353.0,0.00022]
[1641074874567,0.92715266,47354.0,47353.0,0.00022]
[1641074874766,0.930995,47354.0,47353.0,0.00022]
[1641074874968,2.047995,47354.0,47353.0,0.00022]
[1641074875269,0.930995,47354.0,47353.0,0.00022]
[1641074875466,1.10227804,47354.0,47353.0,0.00022]
[1641074875666,1.08129265,47354.0,47353.0,0.00022]
[1641074876521,0.70044137,47354.0,47353.0,0.00022]
[1641074877522,0.71892155,47354.0,47353.0,0.00022]
[1641074877721,0.73997508,47354.0,47353.0,0.00022]
[1641074878521,0.76003939,47354.0,47353.0,0.00022]
[1641074878722,1.11651854,47354.0,47353.0,0.00022]
[1641074879525,0.76214731,47354.0,47353.0,0.00022]
[1641074879726,0.592083,47354.0,47353.0,0.00022]
[1641074880378,0.61272527,47354.0,47353.0,0.00022]
[1641074880584,0.74213717,47354.0,47353.0,0.00022]
[1641074880780,1.90913717,47354.0,47353.0,0.00022]
[1641074880978,1.91864749,47354.0,47353.0,0.00022]
[1641074881380,1.96993261,47354.0,47352.0,0.00033]
[1641074881580,1.74048421,47353.0,47352.0,0.00033]
[1641074881779,1.78301285,47353.0,47352.0,0.00033]
[1641074881981,1.88301285,47353.0,47352.0,0.00033]
[1641074882382,1.117,47351.0,47350.0,0.00022]
[1641074882582,0.00011,47344.0,47340.0,0.00033]
[1641074882780,0.58957708,47344.0,47340.0,0.00033]
[1641074882979,0.5897414,47344.0,47340.0,0.00033]
[1641074883184,1.07555752,47344.0,47340.0,0.00033]
[1641074883383,2.21135585,47344.0,47340.0,0.00033]
[1641074884239,2.12680534,47344.0,47340.0,0.00033]
[1641074884438,2.14852624,47344.0,47340.0,0.00033]
[1641074884637,2.12972791,47344.0,47340.0,0.00033]
[1641074885439,2.1483729,47344.0,47340.0,0.00033]
[1641074885743,2.126652,47344.0,47340.0,0.00033]
[1641074886140,1.009652,47344.0,47340.0,0.00033]
[1641074886340,0.64377219,47344.0,47340.0,0.00033]
[1641074886541,0.6251272,47344.0,47340.0,0.00033]
[1641074887371,0.6651272,47344.0,47340.0,0.00033]
[1641074887571,0.74965657,47344.0,47340.0,0.00033]
[1641074887774,0.6651272,47344.0,47340.0,0.00033]
[1641074888074,0.683143,47344.0,47340.0,0.00033]
[1641074888277,0.74773606,47344.0,47340.0,0.00033]
[1641074888474,0.76928768,47344.0,47340.0,0.00033]
[1641074888673,0.75127188,47344.0,47340.0,0.00033]
[1641074889473,0.77303113,47344.0,47340.0,0.00033]
[1641074889674,0.75147951,47344.0,47340.0,0.00033]
[1641074890475,0.77258886,47344.0,47340.0,0.00033]
[1641074890675,0.75082961,47344.0,47340.0,0.00033]
[1641074891518,0.77176529,47344.0,47340.0,0.00033]
[1641074891718,0.75065594,47344.0,47340.0,0.00033]
[1641074891920,0.62688737,47344.0,47340.0,0.00033]
[1641074892117,1.00139382,47344.0,47340.0,0.00033]
[1641074892519,2.13910751,47344.0,47340.0,0.00033]
[1641074892720,2.11817183,47344.0,47340.0,0.00033]
[1641074893120,1.00117183,47344.0,47340.0,0.00033]
[1641074893526,1.01973328,47344.0,47340.0,0.00033]
[1641074893720,0.99901959,47344.0,47340.0,0.00033]
[1641074894122,0.95283137,47343.0,47339.0,0.00024]
[1641074894322,0.052832,47341.0,47339.0,0.00024]
[1641074894622,0.38123929,47340.0,47339.0,0.00024]
[1641074894887,0.43123929,47340.0,47339.0,0.00024]
[1641074895089,0.53123929,47340.0,47339.0,0.00024]
[1641074895592,0.55296336,47340.0,47339.0,0.00024]
[1641074896592,0.57283911,47340.0,47339.0,0.00024]
[1641074896793,0.55111504,47340.0,47339.0,0.00024]
[1641074897195,0.55111504,47340.0,47339.0,4e-05]
[1641074897395,0.55111504,47340.0,47338.0,0.00033]
[1641074897596,0.50692729,47340.0,47338.0,0.00033]
[1641074897797,7.303e-05,47339.0,47338.0,0.00033]
[1641074897996,0.38122103,47339.0,47338.0,0.00033]
[1641074898626,0.38122103,47339.0,47333.0,7e-05]
[1641074898825,0.052831,47336.0,47333.0,7e-05]
[1641074899122,0.095031,47336.0,47333.0,7e-05]
[1641074900521,0.05283,47335.0,47333.0,7e-05]
[1641074900723,0.35341756,47335.0,47333.0,7e-05]
[1641074900923,0.052834,47334.0,47333.0,7e-05]
[1641074908227,0.092834,47334.0,47333.0,7e-05]
[1641074911672,0.142834,47334.0,47333.0,7e-05]
[1641074914030,0.092834,47334.0,47333.0,7e-05]
[1641074919491,0.142834,47334.0,47333.0,7e-05]
[1641074924427,9.142834,47334.0,47333.0,7e-05]
[1641074924632,9.581782,47334.0,47333.0,7e-05]
[1641074926282,9.60150668,47334.0,47333.0,7e-05]
[1641074926683,9.62222393,47334.0,47333.0,7e-05]
[1641074926884,9.60249925,47334.0,47333.0,7e-05]
[1641074927685,9.62398388,47334.0,47333.0,7e-05]
[1641074927882,9.60326663,47334.0,47333.0,7e-05]
[1641074928831,9.62403096,47334.0,47333.0,7e-05]
[1641074929034,9.60254633,47334.0,47333.0,7e-05]
[1641074929837,9.62439074,47334.0,47333.0,7e-05]
[1641074930436,9.581782,47334.0,47333.0,7e-05]
[1641074930840,9.60098775,47334.0,47333.0,7e-05]
[1641074931838,9.62267583,47334.0,47333.0,7e-05]
[1641074932044,9.60347008,47334.0,47333.0,7e-05]
[1641074932785,9.62440777,47334.0,47333.0,7e-05]
[1641074933089,9.45271969,47334.0,47333.0,7e-05]
[1641074933786,9.47374617,47334.0,47333.0,7e-05]
[1641074933986,9.45280848,47334.0,47333.0,7e-05]
[1641074934889,9.45156782,47334.0,47333.0,7e-05]
[1641074935789,9.42016927,47334.0,47333.0,7e-05]
[1641074936133,9.40038345,47334.0,47333.0,7e-05]
[1641074936333,11.54773224,47334.0,47333.0,7e-05]
[1641074936732,11.56734073,47334.0,47333.0,7e-05]
[1641074936932,11.54590528,47334.0,47333.0,7e-05]
[1641074937736,11.56750621,47334.0,47333.0,7e-05]
[1641074937931,11.54789772,47334.0,47333.0,7e-05]
[1641074938333,11.20894972,47334.0,47333.0,7e-05]
[1641074938932,11.20844084,47334.0,47333.0,7e-05]
[1641074939437,11.26126784,47334.0,47333.0,7e-05]
[1641074939633,11.60021584,47334.0,47333.0,7e-05]
[1641074939892,11.62004561,47334.0,47333.0,7e-05]
[1641074940091,11.77004561,47334.0,47333.0,7e-05]
[1641074940891,11.78813985,47334.0,47333.0,7e-05]
[1641074941091,11.74721803,47334.0,47333.0,7e-05]
[1641074941791,11.76615742,47334.0,47333.0,7e-05]
[1641074941993,11.74806318,47334.0,47333.0,7e-05]
[1641074942790,11.76710736,47334.0,47333.0,7e-05]
[1641074942993,11.74816797,47334.0,47333.0,7e-05]
[1641074943933,11.76897022,47334.0,47333.0,7e-05]
[1641074944138,11.74992604,47334.0,47333.0,7e-05]
[1641074944934,11.76894305,47334.0,47333.0,7e-05]
[1641074945134,11.7481408,47334.0,47333.0,7e-05]
[1641074945937,11.76646834,47334.0,47333.0,7e-05]
[1641074946136,11.74745133,47334.0,47333.0,7e-05]
[1641074946937,11.76728106,47334.0,47333.0,7e-05]
[1641074947138,11.74895352,47334.0,47333.0,7e-05]
[1641074947884,11.77028227,47334.0,47333.0,7e-05]
[1641074948785,11.72912379,47334.0,47333.0,7e-05]
[1641074948985,11.74763924,47334.0,47333.0,7e-05]
[1641074949985,11.76712691,47334.0,47333.0,7e-05]
[1641074950188,11.74861146,47334.0,47333.0,7e-05]
[1641074950992,11.7684765,47334.0,47333.0,7e-05]
[1641074951256,11.74898883,47334.0,47333.0,7e-05]
[1641074951957,11.77076858,47334.0,47333.0,7e-05]
[1641074952156,11.75090354,47334.0,47333.0,7e-05]
[1641074952356,11.75208645,47334.0,47333.0,7e-05]
[1641074952956,11.77102103,47334.0,47333.0,7e-05]
[1641074953159,11.74924128,47334.0,47333.0,7e-05]
[1641074954057,11.75214466,47334.0,47333.0,7e-05]
[1641074955068,11.75195141,47334.0,47333.0,7e-05]
[1641074955970,11.77297988,47334.0,47333.0,7e-05]
[1641074956171,11.75133517,47334.0,47333.0,7e-05]
[1641074956973,11.77081251,47334.0,47333.0,7e-05]
[1641074957272,11.74978404,47334.0,47333.0,7e-05]
[1641074958179,9.06066025,47334.0,47333.0,7e-05]
[1641074958375,7.34316025,47334.0,47333.0,0.91125]
[1641074958648,6.13491006,47334.0,47333.0,1.36773246]
[1641074958942,6.13579955,47334.0,47333.0,2.12892558]
[1641074959239,3.91844974,47334.0,47333.0,2.53549511]
[1641074959440,3.91844974,47334.0,47333.0,3.24548486]
[1641074959939,3.91844974,47334.0,47333.0,3.19548486]
[1641074960140,3.91844974,47334.0,47333.0,3.85585065]
[1641074960440,3.89808291,47334.0,47333.0,3.44936819]
[1641074961042,3.89808291,47334.0,47333.0,3.47096654]
[1641074961241,3.89808291,47334.0,47333.0,3.45141397]
[1641074962143,3.89808291,47334.0,47333.0,3.47112607]
[1641074962384,3.89808291,47334.0,47333.0,3.44952772]
[1641074963088,3.89808291,47334.0,47333.0,3.46937079]
[1641074963288,3.89808291,47334.0,47333.0,3.44965869]
[1641074964089,3.89808291,47334.0,47333.0,3.46777375]
[1641074964290,3.89808291,47334.0,47333.0,3.44793068]
[1641074965689,3.89808291,47334.0,47333.0,3.46645355]
[1641074965891,3.89808291,47334.0,47333.0,3.44833849]
[1641074966140,3.89808291,47334.0,47333.0,3.47002158]
[1641074966339,3.89808291,47334.0,47333.0,3.45149871]
[1641074967138,3.89808291,47334.0,47333.0,3.47134181]
[1641074967338,3.89808291,47334.0,47333.0,3.44965872]
[1641074968238,3.89808291,47334.0,47333.0,3.44959395]
[1641074969885,3.89808291,47334.0,47333.0,3.44997258]
[1641074970088,3.89808291,47334.0,47333.0,3.44876234]
[1641074970787,3.89808291,47334.0,47333.0,2.74876234]
[1641074971192,3.89808291,47334.0,47333.0,2.76960592]
[1641074971390,3.89808291,47334.0,47333.0,2.74944896]
[1641074972190,3.89808291,47334.0,47333.0,2.77016255]
[1641074972390,3.89808291,47334.0,47333.0,2.74931897]
[1641074973193,3.47560862,47334.0,47333.0,1.56797752]
[1641074973396,3.47560862,47334.0,47333.0,1.98239122]
[1641074973837,3.20956115,47334.0,47333.0,1.98239122]
[1641074974235,3.20956115,47334.0,47333.0,2.0023535]
[1641074974433,3.20956115,47334.0,47333.0,1.98289198]
[1641074975235,3.20956115,47334.0,47333.0,2.00176585]
[1641074975435,3.20956115,47334.0,47333.0,1.98180357]
[1641074976338,3.20956115,47334.0,47333.0,1.98275147]
[1641074976737,3.20956115,47334.0,47333.0,1.54762418]
[1641074977138,3.20956115,47334.0,47333.0,0.82926463]
[1641074977373,3.20956115,47334.0,47333.0,0.80944286]
[1641074978174,3.20956115,47334.0,47333.0,0.82964642]
[1641074978373,3.20956115,47334.0,47333.0,0.80842866]
[1641074979174,3.20956115,47334.0,47333.0,0.82733248]
[1641074979375,3.20956115,47334.0,47333.0,0.80712892]
[1641074980379,3.20956115,47334.0,47333.0,0.80982073]
[1641074981223,3.20956115,47334.0,47333.0,0.82904552]
[1641074981425,3.20956115,47334.0,47333.0,0.80744989]
[1641074982226,3.20956115,47334.0,47333.0,0.82888075]
[1641074983127,3.20956115,47334.0,47333.0,0.7882251]
[1641074983329,3.20956115,47334.0,47333.0,0.80703618]
[1641074983828,3.20956115,47334.0,47333.0,0.23006108]
[1641074984030,3.30956115,47334.0,47333.0,0.23006108]
[1641074984430,3.30956115,47334.0,47333.0,0.23315668]
[1641074984629,3.64850915,47334.0,47333.0,0.23315668]